bitfinex/quotes_ETHUSD_20250214
["timestamp","ask_amount","ask_price","bid_price","bid_amount"]
[1739561180154,3.63066,2754.4,2754.2,0.005]
[1739561180360,5.34262172,2754.4,2754.2,0.005]
[1739561180540,5.34262172,2754.4,2754.3,35.0]
[1739561181218,1.71197172,2754.4,2754.3,35.0]
[1739561181642,5.34252172,2754.4,2754.3,35.0]
[1739561181854,1.71197172,2754.4,2754.3,35.0]
[1739561183030,1.71197172,2754.4,2754.3,38.63068]
[1739561183277,1.71197172,2754.4,2754.3,35.0]
[1739561183775,1.71197172,2754.4,2754.3,38.63068]
[1739561183936,1.71197172,2754.4,2754.3,42.25544439]
[1739561184734,1.71197172,2755.6,2754.9,0.8013]
[1739561184964,1.71197172,2755.6,2755.4,3.62912]
[1739561185167,1.71197172,2755.6,2755.5,3.6291]
[1739561185339,1.71197172,2755.6,2755.5,38.6291]
[1739561185542,1.71197172,2755.6,2755.5,35.0]
[1739561188383,1.71197172,2755.6,2755.5,38.6291]
[1739561188539,1.71197172,2755.6,2755.5,35.0]
[1739561191778,5.34094172,2755.6,2755.5,35.0]
[1739561191953,5.34094172,2755.6,2755.5,32.5]
[1739561193981,1.71197172,2755.6,2755.5,32.5]
[1739561195789,1.71197172,2755.6,2755.5,36.1291]
[1739561196350,1.71197172,2755.6,2755.5,32.5]
[1739561196562,5.34094172,2755.6,2755.5,32.5]
[1739561196746,1.71197172,2755.6,2755.5,32.5]
[1739561197166,5.34094172,2755.6,2755.5,32.5]
[1739561197489,1.71197172,2755.6,2755.5,32.5]
[1739561197789,5.34094172,2755.6,2755.5,32.5]
[1739561197985,1.71197172,2755.6,2755.5,32.5]
[1739561204992,1.71197172,2755.6,2755.3,3.62926]
[1739561205486,1.71197172,2755.6,2755.4,35.0]
[1739561206054,5.34096172,2755.6,2755.4,35.0]
[1739561206263,1.71197172,2755.6,2755.4,35.0]
[1739561207368,5.34099172,2755.6,2755.4,35.0]
[1739561207785,4.3816,2755.5,2755.4,35.0]
[1739561207982,7.3816,2755.5,2755.4,35.0]
[1739561208189,3.62968,2755.1,2754.6,4.3878]
[1739561208390,1.71197172,2755.0,2754.6,4.3878]
[1739561208594,1.71197172,2755.0,2754.9,35.0]
[1739561208775,1.71197172,2755.0,2754.9,38.62989]
[1739561209114,1.71197172,2755.0,2754.9,35.0]
[1739561209619,1.71197172,2755.0,2754.9,43.01225439]
[1739561211709,1.71197172,2755.7,2755.4,3.62921]
[1739561212390,1.71197172,2755.7,2755.3,3.62935]
[1739561212781,1.71197172,2755.7,2755.3,3.62936]
[1739561212976,5.34082172,2755.7,2755.3,3.62936]
[1739561213510,1.71197172,2755.7,2755.3,3.62936]
[1739561213691,1.71197172,2755.7,2755.3,7.25865]
[1739561213887,1.71197172,2755.7,2755.3,3.62929]
[1739561214096,1.71197172,2755.7,2755.4,3.62921]
[1739561216335,1.71197172,2755.7,2755.5,3.62907]
[1739561216736,1.71197172,2755.7,2755.3,3.62927]
[1739561216905,1.71197172,2755.7,2755.4,3.62914]
[1739561217105,1.71197172,2755.7,2755.5,3.6291]
[1739561218033,1.71197172,2755.7,2755.4,3.62913]
[1739561218738,5.34087172,2755.7,2755.3,3.62927]
[1739561218891,1.71197172,2755.7,2755.3,3.62927]
[1739561219085,1.71197172,2755.7,2755.4,3.62922]
[1739561219493,1.71197172,2755.7,2755.5,3.62908]
[1739561220155,1.71197172,2755.7,2754.9,35.7576]
[1739561220448,3.62916,2755.5,2755.0,3.62968]
[1739561220744,0.7859,2755.3,2754.9,38.62989]
[1739561220895,4.41536,2755.3,2754.9,35.0]
[1739561221097,4.41566,2755.0,2754.9,35.0]
[1739561221317,0.7859,2755.0,2754.9,35.0]
[1739561221614,4.41566,2755.0,2754.9,35.0]
[1739561221829,0.7859,2755.0,2754.9,35.0]
[1739561222034,4.41566,2755.0,2754.9,35.0]
[1739561222546,3.63028,2754.7,2754.2,3.63578]
[1739561222843,3.63028,2754.7,2754.2,3.63574]
[1739561223150,3.63028,2754.7,2754.3,35.0]
[1739561224010,7.26056,2754.7,2754.3,35.0]
[1739561224206,3.63037,2754.6,2754.3,35.0]
[1739561224440,0.7859,2754.5,2754.3,35.0]
[1739561225550,0.7859,2754.5,2754.3,38.63065]
[1739561225842,0.7859,2754.5,2754.3,35.0]
[1739561226212,4.41608,2754.7,2754.3,35.0]
[1739561226533,1.71197172,2754.8,2754.5,3.63033]
[1739561226899,1.71197172,2754.8,2754.7,35.0]
[1739561227095,6.11299172,2754.8,2754.7,35.0]
[1739561227600,1.71197172,2754.8,2754.7,35.0]
[1739561228509,3.0,2755.3,2754.8,0.7901]
[1739561228510,4.34555345,2755.3,2754.8,0.7901]
[1739561228708,4.34555345,2755.3,2754.8,4.42005]
[1739561229003,4.40057,2755.2,2754.7,38.63011]
[1739561229902,3.62972,2755.1,2754.7,35.0]
[1739561230247,1.71197172,2755.2,2754.7,35.0]
[1739561230452,3.63002,2754.8,2754.7,35.0]
[1739561230624,4.40102,2754.8,2754.7,35.0]
[1739561230998,8.34149172,2755.2,2754.7,35.0]
[1739561230999,1.71197172,2755.2,2754.7,35.0]
[1739561231201,3.62971,2755.1,2754.7,35.0]
[1739561231401,3.62977,2755.0,2754.7,35.0]
[1739561232131,1.71197172,2755.2,2754.8,3.63001]
[1739561232315,1.71197172,2755.2,2754.7,35.0]
[1739561232316,1.71197172,2755.2,2754.7,38.63006]
[1739561233154,1.71197172,2755.2,2754.7,35.0]
[1739561233354,1.71197172,2755.2,2754.8,3.63002]
[1739561234019,1.71197172,2755.2,2755.0,3.62975]
[1739561234217,4.98397172,2755.6,2755.0,4.41976]
[1739561234518,1.98397172,2755.6,2755.0,4.41976]
[1739561234735,1.98397172,2755.6,2755.2,3.62943]
[1739561235046,1.98397172,2755.6,2755.0,4.41976]
[1739561235215,1.98397172,2755.6,2755.2,3.62948]
[1739561235949,1.98397172,2755.6,2755.3,35.0]
[1739561236155,1.98397172,2755.6,2755.3,38.62935]
[1739561236301,5.61301172,2755.6,2755.3,35.0]
[1739561236500,3.62913,2755.5,2755.3,35.0]
[1739561236998,0.771,2755.4,2755.3,35.0]
[1739561237852,3.62953,2755.2,2754.6,4.42033]
[1739561238145,4.40078,2755.0,2754.4,3.63042]
[1739561238351,0.771,2755.0,2754.5,35.0]
[1739561238499,3.6299,2754.9,2754.5,35.0]
[1739561239005,3.63004,2754.8,2754.5,35.0]
[1739561239203,4.40129,2754.6,2754.5,35.0]
[1739561240402,6.11326172,2754.6,2754.5,35.0]
[1739561241149,6.11326172,2754.6,2754.2,0.005]
[1739561241150,3.63068,2754.3,2754.2,0.005]
[1739561241654,3.63068,2754.3,2754.2,35.005]
[1739561243019,5.34265172,2754.3,2754.2,35.005]
[1739561243227,6.12345172,2754.3,2754.2,35.005]
[1739561244155,9.67345172,2754.3,2754.2,0.005]
[1739561245359,7.18081,2754.2,2754.1,0.1479025]
[1739561245559,7.96161,2754.2,2754.1,0.1479025]
[1739561245757,9.67358172,2754.2,2754.1,0.1479025]
[1739561246544,9.67358172,2754.2,2754.1,2.5e-06]
[1739561247159,9.77358172,2754.2,2754.1,2.5e-06]
[1739561248956,5.36197172,2754.2,2752.9,35.0]
[1739561249163,3.6324,2753.0,2752.9,35.0]
[1739561250262,3.63301,2752.6,2752.3,0.7814]
[1739561250444,7.26604,2752.6,2752.3,0.7814]
[1739561250650,3.63301,2752.6,2752.3,0.7814]
[1739561250847,3.63301,2752.6,2752.4,35.0]
[1739561251283,3.63306,2752.5,2752.4,35.0]
[1739561253314,5.34503172,2752.5,2752.4,35.0]
[1739561253467,1.71197172,2752.5,2752.4,35.0]
[1739561255265,1.71197172,2752.5,2752.1,3.63855]
[1739561255681,1.71197172,2752.5,2752.2,35.0]
[1739561256217,5.34512172,2752.5,2752.2,35.0]
[1739561256766,1.71197172,2752.5,2752.2,35.0]
[1739561257308,4.45822,2752.3,2752.2,35.0]
[1739561257882,6.17019172,2752.3,2752.2,35.0]
[1739561258080,3.63345,2752.2,2752.1,0.005]
[1739561258278,7.45835,2752.2,2752.1,0.005]
[1739561258478,8.00835,2752.2,2752.1,0.005]
[1739561258709,7.45835,2752.2,2752.1,0.005]
[1739561258916,7.73035,2752.2,2752.1,0.005]
[1739561259122,3.63438,2751.5,2751.4,0.1479025]
[1739561259263,3.63438,2751.5,2751.4,35.1479025]
[1739561260396,3.63438,2751.5,2750.3,3.0]
[1739561260397,3.63508,2751.0,2750.3,0.7517]
[1739561260565,3.90665,2751.3,2750.7,3.63543]
[1739561260967,3.90665,2751.3,2750.6,0.7517]
[1739561261168,3.63492,2751.1,2750.8,35.0]
[1739561261372,3.63517,2750.9,2750.8,35.0]
[1739561261570,3.63505,2751.0,2750.8,35.0]
[1739561261798,3.90669,2751.3,2750.8,35.0]
[1739561261999,0.272,2751.3,2750.8,35.0]
[1739561262180,1.71197172,2751.5,2750.8,5.69048874]
[1739561262393,1.71197172,2751.5,2751.1,0.7517]
[1739561262592,0.272,2751.9,2751.4,3.63449]
[1739561262793,0.272,2751.9,2751.8,35.0]
[1739561262794,3.90585,2751.9,2751.8,35.0]
[1739561262999,3.63385,2751.9,2751.8,35.0]
[1739561264368,4.45875,2751.9,2751.8,35.0]
[1739561264573,0.8249,2751.9,2751.1,0.7517]
[1739561264787,3.63435,2751.6,2751.1,0.7517]
[1739561265002,3.63454,2751.4,2750.8,0.7517]
[1739561265199,3.63464,2751.3,2751.2,35.0]
[1739561265476,3.63464,2751.3,2750.5,0.7517]
[1739561265477,3.63508,2751.0,2750.5,0.7517]
[1739561266017,3.63535,2750.8,2750.6,35.0]
[1739561266389,3.63543,2750.7,2750.6,35.0]
[1739561266588,3.63535,2750.8,2750.6,35.0]
[1739561267880,7.27027,2751.0,2750.6,35.0]
[1739561268130,3.63511,2751.0,2750.6,35.0]
[1739561269249,3.6354,2750.8,2750.6,35.0]
[1739561269387,3.63519,2750.9,2750.6,35.0]
[1739561270229,3.90697,2751.1,2750.6,35.0]
[1739561270391,3.63511,2751.0,2750.6,35.0]
[1739561270788,0.272,2751.1,2750.6,35.0]
[1739561271130,3.90703,2751.1,2750.6,38.63556]
[1739561272189,0.8249,2751.2,2750.6,35.0]
[1739561272418,0.273,2751.6,2751.2,3.63477]
[1739561272608,0.273,2751.6,2751.2,0.7942]
[1739561272805,0.273,2751.6,2751.2,4.42888]
[1739561273091,3.6344,2751.5,2751.3,35.0]
[1739561273716,0.273,2751.6,2751.3,35.0]
[1739561274118,3.90725,2751.6,2751.3,35.0]
[1739561274301,0.273,2751.6,2751.3,35.0]
[1739561274628,3.63445,2751.5,2751.3,35.0]
[1739561274830,3.90727,2751.6,2751.3,35.0]
[1739561275421,0.273,2751.6,2751.3,35.0]
[1739561275741,0.8198,2751.9,2751.4,0.7603]
[1739561275938,0.272,2751.7,2751.5,3.63436]
[1739561276435,0.272,2751.7,2751.4,4.39479]
[1739561276738,3.90581,2752.0,2751.5,3.63437]
[1739561277032,7.53959,2752.0,2751.5,3.63437]
[1739561277436,3.63379,2752.0,2751.5,3.63437]
[1739561277730,3.63386,2751.9,2751.5,3.63437]
[1739561277954,3.63386,2751.9,2751.5,3.53437]
[1739561278097,3.63386,2751.9,2751.4,0.7603]
[1739561278293,3.63405,2751.8,2751.4,0.7603]
[1739561278639,3.63427,2751.6,2751.1,4.39513]
[1739561278817,3.63427,2751.6,2751.2,35.0]
[1739561279055,7.26813,2751.8,2751.2,38.63471]
[1739561279219,3.63413,2751.7,2751.2,35.0]
[1739561279398,3.63435,2751.6,2751.2,35.0]
[1739561279802,3.63447,2751.5,2751.2,35.0]
[1739561280201,3.63453,2751.4,2751.2,35.0]
[1739561280398,3.63431,2751.6,2751.2,35.0]
[1739561280741,1.71197172,2751.9,2751.2,38.62476439]
[1739561280929,1.71197172,2751.9,2751.4,3.63442]
[1739561281238,3.63399,2751.8,2751.2,3.63467]
[1739561281397,1.71197172,2751.9,2751.1,4.5967359]
[1739561281595,1.71197172,2751.9,2751.5,3.63437]
[1739561281800,1.71197172,2751.9,2751.6,4.39448]
[1739561283044,1.71197172,2751.9,2751.6,0.7603]
[1739561283457,1.71197172,2751.9,2751.6,4.39446]
[1739561283876,1.71197172,2751.9,2751.6,0.7603]
[1739561284666,6.10329172,2751.9,2751.4,3.63448]
[1739561284875,2.46937172,2751.9,2751.2,4.39502]
[1739561285177,3.63407,2751.8,2751.2,8.02968]
[1739561285476,3.63407,2751.8,2751.2,4.39498]
[1739561285680,7.26815,2751.8,2751.2,4.39498]
[1739561285881,3.63412,2751.7,2751.2,4.39497]
[1739561286080,3.63398,2751.8,2750.9,7.45495594]
[1739561286255,6.10323172,2751.9,2751.0,3.63503]
[1739561286630,3.63432,2751.6,2751.1,3.63484]
[1739561286952,3.63411,2751.7,2751.2,7.26944]
[1739561287148,3.63411,2751.7,2751.2,3.63467]
[1739561287689,3.63411,2751.7,2751.2,7.26938]
[1739561288179,0.272,2751.8,2750.9,3.81987594]
[1739561288383,3.63417,2751.7,2751.2,3.63466]
[1739561288582,3.63418,2751.7,2751.2,3.63466]
[1739561288942,3.63425,2751.6,2751.2,3.63466]
[1739561289441,3.90606,2751.8,2751.2,3.63466]
[1739561289642,3.90606,2751.8,2751.3,3.63464]
[1739561289882,3.63406,2751.8,2751.2,3.63466]
[1739561290092,3.63406,2751.8,2751.3,4.41234]
[1739561291371,3.63398,2751.8,2751.3,0.7777]
[1739561291572,3.63398,2751.8,2751.3,4.41223]
[1739561291767,3.63398,2751.8,2751.3,0.7777]
[1739561291972,3.63398,2751.8,2751.4,3.63451]
[1739561292166,3.63398,2751.8,2751.3,0.7777]
[1739561292372,3.63398,2751.8,2751.3,4.41226]
[1739561292677,6.37529172,2751.9,2751.4,3.63444]
[1739561293275,6.37529172,2751.9,2751.3,0.7777]
[1739561293276,1.71197172,2751.9,2751.6,7.26839]
[1739561293475,1.71197172,2751.9,2751.6,3.63417]
[1739561293662,1.71197172,2751.9,2751.6,7.26835]
[1739561294157,1.71197172,2751.9,2751.8,3.63398]
[1739561294501,1.71197172,2751.9,2751.8,4.41168]
[1739561294706,1.71197172,2751.9,2751.8,0.7777]
[1739561294866,1.71197172,2751.9,2751.6,4.41184]
[1739561295266,5.34583172,2751.9,2751.4,0.8088]
[1739561295482,5.34583172,2751.9,2751.5,3.63436]
[1739561295681,1.71197172,2751.9,2751.5,3.63436]
[1739561296505,1.71197172,2751.9,2751.5,7.26868]
[1739561296808,3.63406,2751.8,2751.4,0.8088]
[1739561297009,3.63406,2751.8,2751.3,3.63454]
[1739561297210,2.48587172,2751.9,2751.2,0.8088]
[1739561297362,3.63459,2751.4,2750.9,4.4439]
[1739561297562,3.63459,2751.4,2751.0,3.63503]
[1739561297766,3.63459,2751.4,2750.9,4.44386]
[1739561297970,3.63459,2751.4,2750.7,4.44413]
[1739561298164,1.71197172,2751.5,2750.7,0.8088]
[1739561298165,3.63497,2751.1,2750.7,0.8088]
[1739561298396,3.63497,2751.1,2750.0,3.05957594]
[1739561298397,3.63507,2751.0,2750.4,0.8088]
[1739561298712,3.63525,2750.9,2750.4,4.44461]
[1739561299077,3.63525,2750.9,2750.4,0.8088]
[1739561299506,3.63541,2750.8,2750.4,0.8088]
[1739561300069,1.71197172,2751.1,2750.2,0.35631822]
[1739561300070,1.0459,2750.7,2750.2,0.35631822]
[1739561300264,3.63596,2750.3,2750.2,0.35631822]
[1739561300983,5.34793172,2750.3,2750.2,0.35631822]
[1739561301186,6.12183172,2750.3,2750.2,0.35631822]
[1739561301881,1.71197172,2750.3,2750.2,0.35631822]
[1739561302128,4.71849,2750.6,2750.2,0.35631822]
[1739561302327,7.44686,2750.3,2750.2,0.35631822]
[1739561304231,4.44686,2750.3,2750.2,0.35631822]
[1739561305888,7.44686,2750.3,2750.2,0.35631822]
[1739561306184,7.99686,2750.3,2750.2,0.35631822]
[1739561307746,6.63596,2750.3,2750.2,0.35631822]
[1739561308029,5.62088172,2750.4,2750.2,0.35631822]
[1739561308327,3.63596,2750.3,2750.2,0.35631822]
[1739561310333,6.63596,2750.3,2750.2,0.35631822]
[1739561310721,8.89793172,2750.3,2750.2,0.35631822]
[1739561310920,9.70883172,2750.3,2750.2,0.35631822]
[1739561311905,9.15883172,2750.3,2750.2,0.35631822]
[1739561312308,9.70883172,2750.3,2750.2,0.35631822]
[1739561312511,0.8109,2748.7,2748.6,0.1479025]
[1739561312718,4.72198,2748.7,2748.6,0.1479025]
[1739561313237,8.4538947,2748.7,2747.3,0.7805565]
[1739561313438,3.63862,2748.3,2747.3,1.22312415]
[1739561313736,3.91157,2748.4,2747.7,3.63937]
[1739561313935,3.63857,2748.4,2747.7,3.63937]
[1739561314236,3.638,2748.8,2747.4,3.2424103]
[1739561314443,3.0,2748.8,2747.5,3.63957]
[1739561314630,3.63876,2748.2,2747.5,3.63957]
[1739561314937,3.63857,2748.4,2747.6,3.63952]
[1739561315346,3.63865,2748.3,2747.7,3.63939]
[1739561315636,3.63865,2748.3,2747.6,3.63941]
[1739561315637,4.44955,2748.3,2747.6,3.63941]
[1739561315951,3.63835,2748.5,2747.7,3.63937]
[1739561316299,3.63835,2748.5,2747.9,3.63905]
[1739561317452,0.8109,2748.6,2747.9,3.63905]
[1739561317749,0.8109,2748.6,2748.0,3.63897]
[1739561317945,0.8109,2748.6,2748.1,3.63879]
[1739561318866,3.91212,2748.7,2748.1,3.63879]
[1739561319651,6.63762,2749.1,2748.3,3.63857]
[1739561319931,3.63791,2748.9,2748.4,0.7865]
[1739561320098,0.8266,2748.7,2748.3,3.63857]
[1739561320303,0.8266,2748.7,2747.7,3.63928]
[1739561320527,3.63886,2748.2,2747.6,3.63946]
[1739561320933,0.274,2748.4,2747.9,3.63912]
[1739561321136,3.91249,2748.4,2747.8,3.63917]
[1739561321367,3.63821,2748.6,2748.0,3.639]
[1739561321530,5.35006172,2748.7,2748.2,3.63872]
[1739561321736,5.35006172,2748.7,2748.4,3.63843]
[1739561321737,1.71197172,2748.7,2748.4,3.63843]
[1739561321950,0.274,2748.8,2748.4,3.63843]
[1739561322752,0.274,2748.8,2748.6,3.63819]
[1739561323039,0.274,2748.8,2748.7,35.0]
[1739561323379,0.274,2749.0,2748.7,35.0]
[1739561323884,3.63758,2749.1,2748.7,35.0]
[1739561324084,3.91158,2749.1,2748.7,35.0]
[1739561324429,3.63778,2749.0,2748.7,35.0]
[1739561325440,1.98597172,2749.1,2748.7,35.0]
[1739561325636,1.98597172,2749.1,2748.7,38.63797]
[1739561325832,0.8266,2749.3,2748.9,3.63774]
[1739561326174,6.034,2749.4,2749.0,3.63768]
[1739561326568,6.034,2749.4,2749.1,3.63754]
[1739561328896,6.034,2749.4,2749.1,3.63745]
[1739561329392,6.034,2749.4,2749.0,3.63768]
[1739561329589,6.034,2749.4,2749.1,3.63747]
[1739561329777,6.034,2749.4,2749.1,3.63755]
[1739561329961,6.034,2749.4,2748.8,4.42441]
[1739561330164,6.034,2749.4,2748.7,35.0]
[1739561330165,6.63728,2749.3,2748.7,38.63805]
[1739561330350,3.0,2749.3,2748.7,38.63805]
[1739561330551,3.63748,2749.2,2748.7,42.27605]
[1739561330753,3.63748,2749.2,2748.7,38.638]
[1739561330981,3.63756,2749.1,2748.7,35.0]
[1739561331179,4.46432,2749.0,2748.7,35.0]
[1739561331590,0.8266,2749.0,2748.7,35.0]
[1739561331763,6.63739,2749.3,2748.8,3.63794]
[1739561331764,7.39529,2749.3,2748.8,3.63794]
[1739561332161,7.39529,2749.3,2748.8,4.42904]
[1739561332501,7.39527,2749.3,2748.7,35.0]
[1739561332680,3.63744,2749.2,2748.7,38.63807]
[1739561332887,3.63744,2749.2,2748.7,38.63801]
[1739561333292,3.63744,2749.2,2748.7,38.638]
[1739561333498,3.63744,2749.2,2748.8,3.63794]
[1739561333660,7.39519,2749.3,2748.8,3.63794]
[1739561334876,0.7579,2749.3,2749.0,3.63761]
[1739561335084,0.7579,2749.3,2748.9,3.63775]
[1739561336070,0.7579,2749.3,2749.0,3.63762]
[1739561336614,0.7579,2749.3,2748.8,3.63786]
[1739561336615,1.71197172,2749.5,2749.3,3.63727]
[1739561336776,1.98597172,2749.5,2749.3,3.63727]
[1739561337471,1.71197172,2749.5,2749.3,3.63727]
[1739561337871,0.71174972,2749.7,2749.5,3.63698]
[1739561338120,0.274,2749.9,2749.4,3.63715]
[1739561338414,0.274,2749.9,2749.5,3.63695]
[1739561338915,0.274,2749.9,2749.6,35.0]
[1739561339074,0.274,2749.9,2749.6,38.63681]
[1739561339268,5.46987172,2750.0,2749.6,38.63681]
[1739561339474,1.00610297,2749.9,2749.6,38.63681]
[1739561340311,0.73210297,2749.9,2749.6,38.63681]
[1739561340812,2.46987172,2750.0,2749.8,3.63662]
[1739561341171,1.71197172,2750.0,2749.7,3.63675]
[1739561341581,1.71197172,2750.0,2749.8,3.6366]
[1739561341871,1.71197172,2750.0,2749.7,3.63676]
[1739561344705,1.71197172,2750.0,2749.9,3.63649]
[1739561344903,1.71197172,2750.0,2749.8,3.6366]
[1739561346005,1.71197172,2750.0,2749.7,3.63664]
[1739561346006,5.34833172,2750.0,2749.9,35.0]
[1739561346339,1.71197172,2750.0,2749.6,3.63687]
[1739561346482,5.34834172,2750.0,2749.5,3.63701]
[1739561346818,5.34834172,2750.0,2749.6,35.0]
[1739561347483,1.71197172,2750.0,2749.7,3.63674]
[1739561347679,1.71197172,2750.0,2749.4,0.7911]
[1739561347880,1.71197172,2750.0,2749.9,3.63649]
[1739561348099,1.71197172,2750.0,2749.9,35.0]
[1739561348724,1.71197172,2750.0,2749.9,38.63649]
[1739561348927,1.71197172,2750.0,2749.9,35.0]
[1739561350921,3.63652,2749.9,2749.1,3.63743]
[1739561351129,3.63682,2749.7,2748.9,0.8139]
[1739561351302,3.63682,2749.7,2749.0,3.63768]
[1739561351623,4.46686,2749.5,2749.1,35.0]
[1739561351925,3.63718,2749.4,2749.1,35.0]
[1739561352228,4.46686,2749.5,2749.1,35.0]
[1739561352530,4.1028,2750.0,2749.5,3.63695]
[1739561352687,0.8298,2750.0,2749.8,3.63658]
[1739561353025,0.8298,2750.3,2749.7,3.63673]
[1739561353200,0.8298,2750.3,2749.9,35.0]
[1739561353398,0.8298,2750.3,2749.9,38.63637]
[1739561353617,0.8298,2750.3,2749.9,42.27277]
[1739561353830,4.46554,2750.5,2750.0,3.63635]
[1739561354252,4.46554,2750.5,2749.9,39.45027]
[1739561354253,4.46554,2750.5,2749.9,43.08667]
[1739561354428,3.63584,2750.4,2749.9,39.45027]
[1739561354588,3.63597,2750.3,2749.9,35.0]
[1739561354784,3.63617,2750.2,2749.9,35.0]
[1739561354987,3.63597,2750.3,2749.9,35.0]
[1739561355686,3.0,2750.4,2749.9,38.63648]
[1739561356830,3.63549,2750.7,2750.2,3.63609]
[1739561357129,3.63549,2750.7,2750.2,0.784]
[1739561357326,3.63576,2750.5,2750.2,0.784]
[1739561357528,3.63576,2750.5,2749.9,35.0]
[1739561357731,4.41268,2750.3,2749.9,35.0]
[1739561357887,0.7767,2750.3,2749.9,38.63648]
[1739561358858,4.41248,2750.5,2749.9,38.63648]
[1739561359065,3.63557,2750.6,2749.9,39.38298055]
[1739561359264,3.63557,2750.6,2750.1,3.63616]
[1739561359940,8.42978515,2750.8,2750.1,3.63616]
[1739561360114,3.63546,2750.7,2750.2,3.63603]
[1739561361134,3.63546,2750.7,2750.3,35.0]
[1739561361853,0.74469515,2750.8,2750.4,3.6358]
[1739561362060,3.63563,2750.6,2749.9,3.63649]
[1739561362260,3.63563,2750.6,2750.0,3.63634]
[1739561362425,4.3919,2750.5,2750.0,3.63634]
[1739561362625,3.63584,2750.4,2750.0,3.63634]
[1739561363035,0.7562,2750.5,2750.1,38.63613]
[1739561363236,7.39165,2750.7,2750.2,3.63603]
[1739561363432,4.39165,2750.7,2750.2,3.63603]
[1739561364724,0.7562,2750.7,2750.1,35.0]
[1739561364927,3.63518,2750.9,2750.4,3.63575]
[1739561365127,6.5172,2751.0,2750.4,3.63575]
[1739561365327,3.6352,2750.9,2750.4,7.27152]
[1739561365536,3.6352,2750.9,2750.4,3.63575]
[1739561365740,3.6352,2750.9,2750.4,3.63573]
[1739561365940,3.6352,2750.9,2750.3,8.06024]
[1739561365941,7.27049,2750.9,2750.3,8.06024]
[1739561366168,7.27049,2750.9,2750.3,4.42428]
[1739561366169,3.63538,2750.8,2750.3,4.42428]
[1739561367086,3.63544,2750.7,2750.3,0.7884]
[1739561367293,3.63544,2750.7,2750.2,3.63609]
[1739561367870,3.63544,2750.7,2750.3,3.63596]
[1739561368183,3.63544,2750.7,2750.2,3.63608]
[1739561368388,0.7562,2750.7,2750.1,35.0]
[1739561368685,3.6358,2750.5,2750.1,35.0]
[1739561368889,4.39172,2750.7,2750.1,35.0]
[1739561369184,6.10369172,2750.7,2750.1,35.0]
[1739561369503,6.10368172,2750.7,2750.2,3.63601]
[1739561369855,3.63577,2750.5,2750.1,35.0]
[1739561370050,3.63597,2750.3,2750.1,35.0]
[1739561370278,0.7562,2750.2,2750.1,35.0]
[1739561370474,4.39229,2750.2,2750.1,35.0]
[1739561372682,0.7562,2750.2,2750.1,35.0]
[1739561372891,4.39229,2750.2,2750.1,35.0]
[1739561373871,0.7562,2750.2,2750.1,35.0]
[1739561374075,4.39229,2750.2,2750.1,35.0]
[1739561374891,3.90897,2750.3,2750.1,35.0]
[1739561375361,0.273,2750.3,2750.1,35.0]
[1739561375557,3.63609,2750.2,2750.1,35.0]
[1739561376469,4.39099,2750.2,2750.1,35.0]
[1739561378881,4.39099,2750.2,2749.5,4.43058]
[1739561378882,3.63685,2749.7,2749.2,0.811]
[1739561379087,3.63685,2749.7,2749.0,4.44861]
[1739561379088,3.6371,2749.5,2749.0,4.44861]
[1739561379485,3.6371,2749.5,2749.4,35.0]
[1739561380075,1.71197172,2750.0,2749.5,4.44795]
[1739561380275,5.34833172,2750.0,2749.5,4.44795]
[1739561380485,3.63651,2749.9,2749.5,0.811]
[1739561381425,8.98480172,2750.0,2749.5,4.44799]
[1739561381581,5.34833172,2750.0,2749.5,4.44799]
[1739561381974,3.63651,2749.9,2749.5,0.811]
[1739561383019,1.71197172,2750.0,2749.2,0.811]
[1739561383319,3.63667,2749.8,2749.2,4.4483]
[1739561383470,3.63672,2749.8,2749.6,35.0]
[1739561383881,3.8305,2750.1,2749.6,35.0]
[1739561383882,3.63627,2750.1,2749.7,4.44775]
[1739561384083,0.8305,2750.3,2749.8,3.6366]
[1739561384324,2.54247172,2750.6,2749.7,3.87570641]
[1739561384521,3.63572,2750.5,2750.0,3.63625]
[1739561385120,3.63589,2750.4,2750.1,35.0]
[1739561385420,3.63572,2750.5,2750.1,35.0]
[1739561385629,3.6359,2750.4,2750.1,35.0]
[1739561385783,3.63572,2750.5,2750.1,35.0]
[1739561386127,3.63577,2750.5,2750.1,35.0]
[1739561386286,2.54247172,2750.6,2750.1,38.63616]
[1739561386488,1.71197172,2750.6,2750.2,0.811]
[1739561387188,5.34760172,2750.6,2750.2,0.811]
[1739561388281,1.71197172,2750.6,2750.2,0.811]
[1739561388480,3.63538,2750.8,2750.3,3.63587]
[1739561389687,3.63545,2750.7,2750.2,0.811]
[1739561389994,7.2705,2750.9,2750.4,35.0]
[1739561390183,3.63539,2750.8,2750.4,35.0]
[1739561390526,3.63553,2750.7,2750.4,35.0]
[1739561390896,3.63552,2750.7,2750.4,35.0]
[1739561392089,3.63532,2750.8,2750.4,35.0]
[1739561393628,3.63544,2750.7,2750.4,35.0]
[1739561394402,3.6353,2750.8,2750.4,35.0]
[1739561394885,3.6353,2750.8,2750.4,38.63582]
[1739561395951,3.63543,2750.7,2750.4,35.0]
[1739561396710,3.6353,2750.8,2750.4,35.0]
[1739561397049,3.6353,2750.8,2750.4,38.63581]
[1739561397248,3.6353,2750.8,2750.4,35.0]